bitfinex/quotes_SOLUSD_20250612
["timestamp","ask_amount","ask_price","bid_price","bid_amount"]
[1749755747983,28.47479178,157.79,157.78,30.14451253]
[1749755748169,28.47475502,157.79,157.78,30.14451253]
[1749755748369,28.47470486,157.79,157.78,30.14451253]
[1749755748783,33.19076274,157.79,157.78,30.14451253]
[1749755749078,28.47443132,157.79,157.78,30.14451253]
[1749755749397,33.19183877,157.79,157.78,30.14451253]
[1749755749582,33.19184016,157.79,157.78,30.14451253]
[1749755749891,26.11325756,157.79,157.78,30.14451253]
[1749755750066,28.4744112,157.79,157.78,30.14451253]
[1749755750393,2.81579054,157.79,157.78,49.46559596]
[1749755750593,0.4546369,157.79,157.78,56.05329596]
[1749755755803,0.4546369,157.79,157.78,74.70294482]
[1749755757301,0.4546369,157.79,157.78,163.20294482]
[1749755757809,0.4546369,157.79,157.78,163.48726796]
[1749755758172,0.4546369,157.79,157.78,168.62991961]
[1749755758380,0.4546369,157.79,157.78,163.48726796]
[1749755758774,6.33507177,157.86,157.8,0.14216157]
[1749755759099,6.33507177,157.86,157.84,19.32108343]
[1749755759306,6.33507177,157.86,157.85,30.14451253]
[1749755759896,6.33432571,157.87,157.85,30.14451253]
[1749755760081,6.33432571,157.87,157.86,3.98451253]
[1749755762601,2.35272827,157.89,157.87,3.98451253]
[1749755762792,6.33326079,157.9,157.88,49.46559596]
[1749755762981,6.33326079,157.9,157.89,3.98451253]
[1749755762982,25.65434422,157.9,157.89,3.98451253]
[1749755763479,6.33326079,157.9,157.89,3.98451253]
[1749755763883,25.65434422,157.9,157.89,3.98451253]
[1749755764095,28.14797584,157.9,157.89,30.14451253]
[1749755764293,6.33326079,157.9,157.89,30.14451253]
[1749755764486,25.65434422,157.9,157.89,30.14451253]
[1749755765522,6.33326079,157.9,157.89,30.14451253]
[1749755765826,25.65434422,157.9,157.89,30.12451253]
[1749755766388,25.79650579,157.9,157.89,30.12451253]
[1749755767392,26.0,157.88,157.87,3.98451253]
[1749755767589,0.14216157,157.86,157.83,3.98451253]
[1749755767788,0.28432314,157.86,157.85,3.98451253]
[1749755768117,45.32108343,157.86,157.85,30.12451253]
[1749755768286,25.6558104,157.86,157.85,30.12451253]
[1749755768803,25.79797197,157.86,157.85,30.12451253]
[1749755771318,6.47688854,157.86,157.85,30.12451253]
[1749755771514,25.94013354,157.86,157.85,30.12451253]
[1749755772029,6.33472697,157.86,157.85,30.12451253]
[1749755772185,25.6558104,157.86,157.85,30.12451253]
[1749755772386,25.6558104,157.86,157.85,26.14]
[1749755772619,25.6558104,157.86,157.85,30.12451253]
[1749755772825,51.6558104,157.86,157.85,30.12451253]
[1749755773292,25.6558104,157.86,157.85,30.12451253]
[1749755773633,51.6558104,157.86,157.85,30.12451253]
[1749755776622,32.33472697,157.86,157.85,30.12451253]
[1749755777124,51.6558104,157.86,157.85,30.12451253]
[1749755780034,25.6558104,157.86,157.85,30.12451253]
[1749755780232,6.33472697,157.86,157.85,30.12451253]
[1749755780530,6.33432571,157.87,157.86,3.98451253]
[1749755780821,6.33432571,157.87,157.86,30.12451253]
[1749755781030,6.33352333,157.89,157.86,118.62451253]
[1749755781229,6.33352333,157.89,157.88,3.98451253]
[1749755781396,6.33352333,157.89,157.88,30.12451253]
[1749755784320,8.69932965,157.89,157.88,30.12451253]
[1749755784693,6.33352333,157.89,157.88,30.12451253]
[1749755784902,28.02043403,157.89,157.88,30.12451253]
[1749755785101,28.02007295,157.89,157.88,30.12451253]
[1749755785309,28.02005199,157.89,157.88,30.12451253]
[1749755785590,25.65460676,157.89,157.88,30.12451253]
[1749755786623,51.65460676,157.89,157.88,3.98451253]
[1749755786832,34.69130536,157.89,157.88,30.12451253]
[1749755787004,51.65460676,157.89,157.88,30.12451253]
[1749755788016,6.33352333,157.89,157.88,30.12451253]
[1749755788323,6.33272117,157.91,157.9,3.98451253]
[1749755788520,6.33272117,157.91,157.9,30.12451253]
[1749755788828,6.3319192,157.93,157.9,30.12451253]
[1749755789129,8.69078011,157.93,157.92,3.98451253]
[1749755789323,6.3319192,157.93,157.92,30.12451253]
[1749755790021,21.67990059,157.95,157.92,30.12451253]
[1749755790022,6.33111744,157.95,157.94,3.98451253]
[1749755790331,25.65220087,157.95,157.94,30.12451253]
[1749755791727,6.33111744,157.95,157.94,30.12451253]
[1749755792232,25.65220087,157.95,157.94,30.12451253]
[1749755792600,28.0115026,157.95,157.94,30.12451253]
[1749755792924,28.01158573,157.95,157.94,30.12451253]
[1749755793107,25.65220087,157.95,157.94,30.12451253]
[1749755793311,28.01167386,157.95,157.94,30.12451253]
[1749755793514,28.01166697,157.95,157.94,30.12451253]
[1749755793821,25.65220087,157.95,157.94,30.12451253]
[1749755794003,28.01166761,157.95,157.94,30.12451253]
[1749755794204,28.01147757,157.95,157.94,30.12451253]
[1749755794405,25.65220087,157.95,157.94,3.98451253]
[1749755794622,28.01149804,157.95,157.94,30.12451253]
[1749755794826,28.01158778,157.95,157.94,30.12451253]
[1749755795128,25.65220087,157.95,157.94,30.12451253]
[1749755795335,28.01169309,157.95,157.94,30.12451253]
[1749755795501,25.65220087,157.95,157.94,30.12451253]
[1749755795824,28.01155525,157.95,157.94,30.12451253]
[1749755796014,25.65220087,157.95,157.94,30.12451253]
[1749755796413,28.01159104,157.95,157.94,30.12451253]
[1749755796736,28.01165371,157.95,157.94,30.12451253]
[1749755796924,25.65220087,157.95,157.94,30.12451253]
[1749755797295,28.01173598,157.95,157.94,30.12451253]
[1749755797524,28.29602579,157.95,157.94,30.12451253]
[1749755797710,0.28432314,157.94,157.93,3.98451253]
[1749755797908,19.60540657,157.94,157.93,30.10451253]
[1749755798108,21.96476837,157.94,157.93,30.10451253]
[1749755798304,21.96489316,157.94,157.93,30.10451253]
[1749755798508,25.93692486,157.94,157.93,30.10451253]
[1749755798923,28.29641145,157.94,157.93,30.10451253]
[1749755799124,0.28432314,157.91,157.9,3.98451253]
[1749755799327,0.28432314,157.91,157.84,6.6232]
[1749755799328,0.28432314,157.9,157.89,3.98451253]
[1749755799520,21.9644596,157.9,157.89,30.10451253]
[1749755799903,19.60540657,157.9,157.89,3.98451253]
[1749755800225,21.96693766,157.9,157.89,30.10451253]
[1749755800410,21.96690338,157.9,157.89,30.10451253]
[1749755800613,28.3000256,157.9,157.89,30.10451253]
[1749755801031,8.97894217,157.9,157.89,30.10451253]
[1749755801203,28.30002553,157.9,157.89,30.10451253]
[1749755801819,28.29973138,157.9,157.89,30.10451253]
[1749755802229,28.30084205,157.9,157.89,30.10451253]
[1749755802434,25.93852879,157.9,157.89,30.10451253]
[1749755802611,28.01667686,157.9,157.89,30.12451253]
[1749755802801,25.65420565,157.9,157.89,30.12451253]
[1749755803018,28.01667548,157.9,157.89,30.12451253]
[1749755803347,25.65420565,157.9,157.89,30.12451253]
[1749755803530,8.69552796,157.9,157.89,30.12451253]
[1749755803725,25.65420565,157.9,157.89,30.12451253]
[1749755804635,28.01509041,157.9,157.89,30.12451253]
[1749755804850,28.01639325,157.9,157.89,30.12451253]
[1749755805067,28.30071639,157.9,157.89,3.98451253]
[1749755805230,25.93852879,157.9,157.89,30.12451253]
[1749755805558,28.30252361,157.9,157.89,30.12451253]
[1749755805730,28.3024791,157.9,157.89,30.12451253]
[1749755806144,28.30248603,157.9,157.89,30.12451253]
[1749755806769,28.3020588,157.9,157.89,30.12451253]
[1749755807144,28.30220026,157.9,157.89,30.12451253]
[1749755807453,28.01785788,157.9,157.89,30.12451253]
[1749755807642,25.65420565,157.9,157.89,30.12451253]
[1749755810446,6.33272117,157.91,157.89,30.12451253]
[1749755810650,6.33272117,157.91,157.9,3.98451253]
[1749755810838,25.6538046,157.91,157.9,3.98451253]
[1749755811262,28.0178167,157.91,157.9,3.98451253]
[1749755811560,28.0178628,157.91,157.9,3.98451253]
[1749755812343,28.01785002,157.91,157.9,3.98451253]
[1749755812538,28.01671904,157.91,157.9,3.98451253]
[1749755812743,28.01673572,157.91,157.9,3.98451253]
[1749755813435,25.6538046,157.91,157.9,3.98451253]
[1749755813857,28.0163603,157.91,157.9,3.98451253]
[1749755814065,25.6538046,157.91,157.9,3.98451253]
[1749755814437,28.02491533,157.91,157.9,3.98451253]
[1749755814636,25.6538046,157.91,157.9,3.98451253]
[1749755814848,28.02491533,157.91,157.9,3.98451253]
[1749755815049,25.6538046,157.91,157.9,3.98451253]
[1749755815251,28.02527754,157.91,157.9,3.98451253]
[1749755815563,28.02528591,157.91,157.9,3.98451253]
[1749755815765,28.0253194,157.91,157.9,3.98451253]
[1749755816074,25.6538046,157.91,157.9,3.98451253]
[1749755816257,28.02528591,157.91,157.9,3.98451253]
[1749755816444,28.02529047,157.91,157.9,3.98451253]
[1749755816644,28.0252695,157.91,157.9,3.98451253]
[1749755816951,28.02524864,157.91,157.9,3.98451253]
[1749755817257,28.02525166,157.91,157.9,3.98451253]
[1749755817655,8.70418782,157.91,157.9,3.98451253]
[1749755817966,28.02527962,157.91,157.9,3.98451253]
[1749755819854,28.02509161,157.91,157.9,3.98451253]
[1749755820246,28.02534199,157.91,157.9,3.98451253]
[1749755820448,28.30966513,157.91,157.9,3.98451253]
[1749755820866,26.0,157.88,157.87,3.98451253]
[1749755821039,48.11931123,157.88,157.85,3.98451253]
[1749755821243,19.32108343,157.86,157.85,3.98451253]
[1749755821445,21.69305616,157.86,157.85,30.10451253]
[1749755821657,26.0,157.86,157.85,30.10451253]
[1749755821852,47.69327603,157.86,157.85,30.10451253]
[1749755822054,54.02817132,157.86,157.85,30.10451253]
[1749755822249,51.6558104,157.86,157.85,30.10451253]
[1749755822463,54.02840324,157.86,157.85,30.10451253]
[1749755822860,0.28432314,157.85,157.83,3.98451253]
[1749755823071,26.0,157.82,157.81,3.98451253]
[1749755823249,47.69357398,157.82,157.81,30.10451253]
[1749755823751,47.9777162,157.82,157.81,3.98451253]
[1749755823972,6.62105718,157.81,157.8,3.98451253]
[1749755824276,26.0,157.79,157.78,3.98451253]
[1749755824479,47.69293144,157.79,157.78,30.10451253]
[1749755824770,45.32108343,157.79,157.78,30.10451253]
[1749755825164,47.69291699,157.79,157.78,30.12451253]
[1749755825560,45.32108343,157.79,157.78,30.12451253]
[1749755825875,47.69308607,157.79,157.78,30.12451253]
[1749755826267,51.65862066,157.79,157.78,30.12451253]
[1749755826465,54.03037404,157.79,157.78,30.12451253]
[1749755826790,34.70931199,157.79,157.78,30.12451253]
[1749755826978,34.71049828,157.79,157.78,30.12451253]
[1749755827382,34.7104899,157.79,157.78,30.12451253]
[1749755827571,32.33753723,157.79,157.78,30.12451253]
[1749755827768,8.71051771,157.79,157.78,30.12451253]
[1749755827972,6.33753723,157.79,157.78,30.12451253]
[1749755828282,35.16291854,157.81,157.78,30.12451253]
[1749755828283,6.33713561,157.8,157.78,30.12451253]
[1749755828668,32.33683849,157.81,157.79,3.98451253]
[1749755828869,6.33683849,157.81,157.8,49.44559596]
[1749755829168,6.33593106,157.83,157.82,3.98451253]
[1749755829367,6.33593106,157.83,157.82,30.12451253]
[1749755829588,25.65701449,157.83,157.82,30.12451253]
[1749755829897,25.94133763,157.83,157.81,3.98451253]
[1749755830061,6.6202542,157.83,157.82,26.14]
[1749755830379,25.94133763,157.83,157.82,26.14]
[1749755830759,25.94133763,157.83,157.82,30.12451253]
[1749755830962,25.94133763,157.83,157.82,26.14]
[1749755831180,25.94133763,157.83,157.82,30.12451253]
[1749755833378,25.94133763,157.83,157.82,3.98451253]
[1749755833682,25.94133763,157.83,157.82,30.12451253]
[1749755836696,25.94133763,157.83,157.74,8.2731]
[1749755836697,26.28432314,157.8,157.79,3.98451253]
[1749755836877,0.28432314,157.79,157.78,3.98451253]
[1749755837074,0.28432314,157.79,157.78,30.12451253]
[1749755837075,19.60540657,157.79,157.78,30.12451253]
[1749755837280,19.60540657,157.79,157.78,3.98451253]
[1749755837475,19.60540657,157.79,157.78,30.12451253]
[1749755837788,25.9429438,157.79,157.78,30.12451253]
[1749755838592,25.9429438,157.79,157.78,3.98451253]
[1749755838782,25.9429438,157.79,157.78,30.12451253]
[1749755839582,25.9429438,157.79,157.78,26.14]
[1749755839785,25.9429438,157.79,157.78,30.12451253]
[1749755840099,25.9429438,157.79,157.78,26.14]
[1749755840414,25.9429438,157.79,157.78,30.12451253]
[1749755840565,25.9429438,157.79,157.78,26.14]
[1749755840770,25.9429438,157.79,157.78,30.12451253]
[1749755841395,25.65862066,157.79,157.78,30.12451253]
[1749755842073,6.33753723,157.79,157.78,30.12451253]
[1749755842392,6.33753723,157.79,157.78,49.44559596]
[1749755842972,6.33753723,157.79,157.78,30.12451253]
[1749755843369,25.65862066,157.79,157.78,30.12451253]
[1749755844201,6.33753723,157.79,157.78,30.12451253]
[1749755844385,6.33721114,157.8,157.78,49.44559596]
[1749755844589,6.33721114,157.8,157.79,23.30559596]
[1749755845283,6.33685401,157.81,157.79,23.30559596]
[1749755845491,26.0,157.82,157.8,30.12451253]
[1749755845682,6.33593106,157.83,157.82,3.98451253]
[1749755845998,6.33593106,157.83,157.82,30.12451253]
[1749755846515,22.16961815,157.88,157.87,3.98451253]
[1749755846684,67.49070158,157.88,157.87,30.12451253]
[1749755846872,41.49070158,157.88,157.87,30.12451253]
[1749755847194,6.33392449,157.88,157.87,30.12451253]
[1749755847398,32.33392449,157.88,157.87,30.12451253]
[1749755847694,6.33392449,157.88,157.87,30.12451253]
[1749755848684,32.33392449,157.88,157.87,30.12451253]
[1749755849607,25.65458279,157.9,157.87,30.12451253]
[1749755849906,6.33349936,157.9,157.89,3.98451253]
[1749755850198,6.33349936,157.9,157.89,30.12451253]
[1749755851488,6.33279468,157.91,157.9,3.98451253]
[1749755852002,45.32108343,157.93,157.92,3.98451253]
[1749755852003,6.33205904,157.93,157.92,3.98451253]
[1749755852184,8.69219236,157.96,157.95,3.98451253]
[1749755852387,28.2976202,157.96,157.95,30.10451253]
[1749755852701,54.29781231,157.96,157.95,30.10451253]
[1749755852908,54.29781742,157.96,157.95,30.10451253]
[1749755853201,54.29779868,157.96,157.95,30.10451253]
[1749755853496,51.9361232,157.96,157.95,30.10451253]
[1749755854092,54.29782884,157.96,157.95,30.10451253]
[1749755854410,54.29780047,157.96,157.95,30.10451253]
[1749755854712,54.29777721,157.96,157.95,30.10451253]
[1749755854901,54.01345416,157.96,157.95,30.10451253]
[1749755855093,54.01345225,157.96,157.95,30.10451253]
[1749755855294,54.01342389,157.96,157.95,30.10451253]
[1749755855502,54.01343632,157.96,157.95,30.10451253]
[1749755855902,54.01319348,157.96,157.95,30.10451253]
[1749755856977,54.01323746,157.96,157.95,30.10451253]
[1749755857305,51.65180006,157.96,157.95,30.10451253]
[1749755857501,32.33071663,157.96,157.95,30.10451253]
[1749755857807,54.01323746,157.96,157.95,30.10451253]
[1749755858597,51.65180006,157.96,157.95,30.10451253]
[1749755858788,54.01324073,157.96,157.95,30.10451253]
[1749755858991,51.65180006,157.96,157.95,30.10451253]
[1749755859205,54.01324065,157.96,157.95,30.10451253]
[1749755859380,54.01323746,157.96,157.95,30.10451253]
[1749755860519,51.65180006,157.96,157.95,30.10451253]
[1749755865410,32.33071663,157.96,157.95,30.10451253]
[1749755865803,51.65180006,157.96,157.95,30.10451253]
[1749755868222,32.33071663,157.96,157.95,30.10451253]
[1749755868809,51.65180006,157.96,157.95,30.10451253]
[1749755869329,32.33071663,157.96,157.95,30.10451253]
[1749755869502,51.65180006,157.96,157.95,30.10451253]
[1749755870024,6.32911392,158.0,157.98,3.98451253]
[1749755870194,6.32911392,158.0,157.99,30.08451253]
[1749755870395,25.65019735,158.0,157.99,30.08451253]
[1749755871125,6.32911392,158.0,157.99,30.08451253]
[1749755871326,25.65019735,158.0,157.99,26.1]
[1749755871532,25.65019735,158.0,157.99,30.08451253]
[1749755872237,6.32911392,158.0,157.99,30.08451253]
[1749755872405,6.32831287,158.02,158.01,3.98451253]
[1749755872602,51.6493963,158.02,158.01,30.08451253]
[1749755873212,6.32831287,158.02,158.01,30.08451253]
[1749755873602,51.6493963,158.02,158.01,30.08451253]
[1749755874249,25.6493963,158.02,158.01,30.08451253]
[1749755874541,51.6493963,158.02,158.01,30.08451253]
[1749755874721,32.32831287,158.02,158.01,30.08451253]
[1749755876042,6.32751202,158.04,158.03,3.98451253]
[1749755876219,6.32751202,158.04,158.03,49.40559596]
[1749755876424,25.6477948,158.06,158.05,3.98451253]
[1749755876734,6.32671137,158.06,158.05,30.08451253]
[1749755876909,51.6477948,158.06,158.05,30.08451253]
[1749755877105,25.6477948,158.06,158.05,30.08451253]
[1749755877306,6.32671137,158.06,158.05,30.08451253]
[1749755877525,51.6477948,158.06,158.05,30.08451253]
[1749755877711,32.32671137,158.06,158.05,30.08451253]
[1749755878112,6.32671137,158.06,158.05,30.08451253]
[1749755878537,6.32631112,158.07,158.05,30.08451253]
[1749755878738,6.32631112,158.07,158.06,3.98451253]
[1749755881641,6.32631112,158.07,158.06,23.30559596]
[1749755882146,6.32631112,158.07,158.06,3.98451253]
[1749755882646,6.32591093,158.08,158.06,3.98451253]
[1749755882843,6.32591093,158.08,158.07,26.1]
[1749755883143,6.32591093,158.08,158.07,30.08451253]
[1749755883446,51.64699436,158.08,158.06,3.98451253]
[1749755883663,51.9313175,158.08,158.07,3.98451253]
[1749755884019,26.0,158.06,158.05,3.98451253]
[1749755884219,45.32108343,158.06,158.05,3.98451253]
[1749755884720,51.6477948,158.06,158.05,30.08451253]
[1749755884930,54.00616877,158.06,158.05,30.08451253]
[1749755885136,51.6477948,158.06,158.05,30.08451253]
[1749755885647,34.68530235,158.06,158.05,30.08451253]
[1749755885830,54.00627812,158.06,158.05,30.08451253]
[1749755886024,51.6477948,158.06,158.05,30.08451253]
[1749755886230,54.00604277,158.06,158.05,30.08451253]
[1749755886432,51.6477948,158.06,158.05,30.08451253]
[1749755886745,67.46457323,158.06,158.03,3.98451253]
[1749755886954,48.1434898,158.06,158.04,3.98451253]
[1749755887128,19.32108343,158.05,158.04,26.12]
[1749755887454,19.32108343,158.05,158.04,3.98451253]
[1749755887760,19.60540657,158.05,158.04,30.10451253]
[1749755887934,0.28432314,158.04,158.03,3.98451253]
[1749755888143,26.0,158.03,158.02,3.98451253]
[1749755888327,45.32108343,158.03,158.02,30.10451253]
[1749755888527,45.32108343,158.03,158.01,3.98451253]
[1749755888753,19.32108343,158.02,158.0,3.98451253]
[1749755889057,26.0,157.99,157.98,3.98451253]
[1749755889254,19.32108343,157.99,157.97,3.98451253]
[1749755889565,0.28432314,157.99,157.98,30.10451253]
[1749755889859,19.60540657,157.99,157.98,30.10451253]
[1749755890162,19.32108343,157.99,157.98,30.10451253]
[1749755890841,25.93492109,157.99,157.98,30.10451253]
[1749755891463,25.93492109,157.99,157.98,26.12]
[1749755891827,25.93492109,157.99,157.98,30.10451253]
[1749755894253,25.93492109,157.99,157.98,26.12]
[1749755894637,25.93492109,157.99,157.98,30.10451253]
[1749755895849,25.65059795,157.99,157.98,30.10451253]
[1749755896059,6.32951452,157.99,157.98,30.10451253]
[1749755896245,25.65059795,157.99,157.98,30.10451253]
[1749755896453,51.65059795,157.99,157.98,30.10451253]
[1749755897953,6.32951452,157.99,157.98,30.10451253]
[1749755898332,19.32108343,158.01,157.98,30.10451253]
[1749755898537,19.32108343,158.01,158.0,3.98451253]
[1749755898738,19.32108343,158.01,158.0,30.10451253]
[1749755899660,25.6497968,158.01,158.0,30.10451253]
[1749755901960,6.32871337,158.01,158.0,30.10451253]
[1749755907661,6.32871337,158.01,158.0,30.08451253]
[1749755907662,25.6497968,158.01,158.0,30.08451253]
[1749755907835,25.6497968,158.01,158.0,3.98451253]
[1749755908035,25.6497968,158.01,158.0,30.08451253]
[1749755909139,6.32871337,158.01,158.0,30.08451253]
[1749755909347,6.32871337,158.01,158.0,3.98451253]
[1749755909562,6.32871337,158.01,158.0,30.08451253]
[1749755914158,25.6497968,158.01,158.0,30.08451253]
[1749755915143,25.6497968,158.01,158.0,3.98451253]
[1749755915344,25.6497968,158.01,158.0,30.08451253]
[1749755915963,0.28432314,158.0,157.99,3.98451253]
[1749755916166,0.28432314,158.0,157.97,3.98451253]
[1749755916167,26.0,157.98,157.97,3.98451253]
[1749755916347,45.32108343,157.98,157.97,30.08451253]
[1749755916547,45.32108343,157.98,157.97,3.98451253]
[1749755916752,45.32108343,157.98,157.97,30.08451253]
[1749755918066,0.28432314,157.97,157.95,3.98451253]
[1749755918267,0.28432314,157.97,157.94,3.98451253]
[1749755918268,19.32108343,157.96,157.94,3.98451253]
[1749755918478,19.32108343,157.95,157.94,3.98451253]
[1749755918778,19.32108343,157.95,157.94,30.08451253]
[1749755919145,25.65220087,157.95,157.94,30.08451253]
[1749755919887,25.65220087,157.95,157.91,3.98451253]
[1749755920167,25.65220087,157.95,157.89,3.98451253]
[1749755920168,26.0,157.9,157.89,3.98451253]
[1749755920378,45.32108343,157.9,157.89,30.08451253]
[1749755920552,45.32108343,157.9,157.88,3.98451253]
[1749755920745,19.32108343,157.89,157.87,3.98451253]
[1749755920946,19.32108343,157.88,157.87,3.98451253]
[1749755921264,25.65500792,157.88,157.87,30.08451253]
[1749755921651,25.65500792,157.88,157.87,3.98451253]
[1749755922047,25.65500792,157.88,157.8,7.7497]
[1749755922048,26.0,157.86,157.85,3.98451253]
[1749755922372,45.32108343,157.86,157.85,30.08451253]
[1749755922854,45.32108343,157.86,157.85,3.98451253]
[1749755923056,45.32108343,157.86,157.85,30.08451253]
[1749755923243,45.32108343,157.86,157.83,3.98451253]
[1749755923244,6.33512828,157.85,157.83,3.98451253]
[1749755923448,64.64216686,157.84,157.82,3.98451253]
[1749755923674,45.60540657,157.84,157.83,26.1]
[1749755923846,45.60540657,157.84,157.83,3.98451253]
[1749755923847,64.92649,157.84,157.83,3.98451253]
[1749755924050,64.92649,157.84,157.83,30.08451253]
[1749755924253,64.92649,157.84,157.81,3.98451253]
[1749755924254,26.0,157.82,157.81,3.98451253]
[1749755924472,45.32108343,157.82,157.81,30.08451253]
[1749755925350,45.32108343,157.82,157.8,3.98451253]
[1749755925351,51.65741596,157.82,157.8,3.98451253]
[1749755925544,32.33633253,157.82,157.81,30.08451253]
[1749755925748,51.65741596,157.82,157.81,30.08451253]
[1749755926358,51.65741596,157.82,157.81,30.12451253]
[1749755926974,51.65741596,157.82,157.8,3.98451253]
[1749755927178,51.65741596,157.82,157.79,3.98451253]
[1749755927179,19.32108343,157.81,157.79,3.98451253]
[1749755927373,19.32108343,157.8,157.79,3.98451253]
[1749755927577,32.33633253,157.82,157.81,3.98451253]
[1749755927768,51.65741596,157.82,157.81,3.98451253]
[1749755928076,6.33633253,157.82,157.81,3.98451253]
[1749755928648,26.0,157.84,157.83,3.98451253]
[1749755928852,32.33565837,157.84,157.83,30.14451253]
[1749755929352,51.6567418,157.84,157.83,30.14451253]
[1749755930252,51.6567418,157.84,157.83,3.98451253]
[1749755930460,51.6567418,157.84,157.83,30.14451253]
[1749755931456,71.26214837,157.84,157.82,3.98451253]
[1749755931656,26.0,157.8,157.79,3.98451253]
[1749755931877,19.32108343,157.8,157.79,30.14451253]
[1749755932763,19.32108343,157.8,157.79,26.16]
[1749755932974,26.0,157.81,157.79,30.14451253]
[1749755933171,19.32108343,157.8,157.79,30.14451253]
[1749755933673,25.65821904,157.8,157.79,26.16]
[1749755933865,0.28432314,157.79,157.78,3.98451253]
[1749755934066,19.60540657,157.79,157.78,26.18]
[1749755934360,0.28432314,157.77,157.74,3.98451253]
[1749755934558,0.28432314,157.77,157.76,3.98451253]
[1749755934761,0.28432314,157.77,157.76,30.16451253]
[1749755935861,26.28432314,157.75,157.74,3.98451253]
[1749755936060,0.28432314,157.74,157.72,3.98451253]
[1749755936366,0.28432314,157.74,157.71,3.98451253]
[1749755936367,45.60540657,157.73,157.71,3.98451253]
[1749755936554,26.42648471,157.73,157.72,30.16451253]
[1749755936758,45.74756814,157.73,157.72,30.16451253]
[1749755936954,45.32108343,157.73,157.72,30.16451253]
[1749755937286,26.0,157.74,157.72,30.16451253]
[1749755937754,6.33994801,157.73,157.72,30.16451253]
[1749755938082,6.62427115,157.73,157.72,26.18]
[1749755938474,35.56299618,157.73,157.72,30.16451253]
[1749755938675,6.76643272,157.73,157.72,3.98451253]
[1749755938872,35.70515775,157.73,157.72,30.18451253]
[1749755939670,26.0,157.71,157.7,3.98451253]
[1749755939984,61.56380018,157.71,157.7,3.98451253]
[1749755940184,61.56380018,157.71,157.64,1.61]
[1749755940185,0.42648471,157.7,157.68,3.98451253]
[1749755940485,28.93872503,157.69,157.67,3.98451253]
[1749755940791,28.93872503,157.69,157.64,1.61]
[1749755940792,0.28432314,157.69,157.68,30.20451253]
[1749755941358,48.19263204,157.71,157.69,3.98451253]
[1749755941794,28.93872503,157.7,157.69,3.98451253]
[1749755942091,26.0,157.68,157.67,3.98451253]
[1749755942282,0.28432314,157.67,157.66,3.98451253]
[1749755942586,26.0,157.65,157.64,3.98451253]
[1749755942763,54.93872503,157.65,157.64,30.20451253]
[1749755942963,26.0,157.65,157.64,30.20451253]
[1749755943159,26.0,157.68,157.67,3.98451253]
[1749755943463,26.0,157.68,157.67,30.20451253]
[1749755943782,54.93872503,157.68,157.67,30.20451253]
[1749755944084,32.34195839,157.68,157.67,30.20451253]
[1749755944287,61.28068342,157.68,157.67,30.20451253]
[1749755944672,32.34195839,157.68,157.67,30.20451253]
[1749755944866,28.93872503,157.75,157.74,3.98451253]
[1749755945065,28.93872503,157.75,157.74,30.20451253]
[1749755945283,54.93872503,157.75,157.74,30.20451253]
[1749755945470,28.93872503,157.75,157.74,30.20451253]
[1749755945863,29.36520974,157.75,157.74,26.22]
[1749755946069,35.70435395,157.75,157.74,26.22]
[1749755946908,35.56219238,157.75,157.74,26.22]
[1749755947279,35.27786924,157.75,157.74,26.22]
[1749755947891,6.33914421,157.75,157.74,26.22]
[1749755948185,41.84685598,157.76,157.75,3.98451253]
[1749755948381,70.78558101,157.76,157.75,3.98451253]
[1749755948867,26.28432314,157.74,157.73,3.98451253]
[1749755949075,55.22304817,157.74,157.73,30.20451253]
[1749755949498,26.28432314,157.74,157.73,30.20451253]
[1749755950005,32.62386922,157.74,157.73,30.20451253]
[1749755950373,0.42648471,157.73,157.7,3.98451253]
[1749755950576,54.93872503,157.71,157.69,3.98451253]
[1749755950776,42.89824487,157.74,157.68,3.98451253]
[1749755950777,26.0,157.69,157.68,3.98451253]
[1749755950980,54.93872503,157.69,157.68,30.22451253]
[1749755952082,28.93872503,157.7,157.68,30.22451253]
[1749755952394,32.34075201,157.71,157.69,3.98451253]
[1749755952593,32.34075201,157.71,157.7,30.22451253]
[1749755953179,32.62507515,157.71,157.7,3.98451253]
[1749755953377,32.62507515,157.71,157.7,30.22451253]
[1749755953613,61.27947704,157.71,157.7,30.22451253]
[1749755956311,6.34075201,157.71,157.7,30.22451253]
[1749755956483,6.33954608,157.74,157.73,3.98451253]
[1749755956682,6.33954608,157.74,157.73,30.22451253]
[1749755957588,6.33924044,157.75,157.74,3.98451253]
[1749755957788,32.33924044,157.75,157.74,3.98451253]
[1749755960923,61.27796547,157.75,157.74,3.98451253]
[1749755962222,32.33924044,157.75,157.74,3.98451253]
[1749755962529,35.27666393,157.78,157.77,3.98451253]
[1749755962727,35.27666393,157.78,157.77,30.20451253]
[1749755962728,6.3379389,157.78,157.77,30.20451253]
[1749755963025,28.93872503,157.8,157.77,30.20451253]
[1749755963026,32.33753723,157.79,157.78,3.98451253]
[1749755964328,61.27626226,157.79,157.78,3.98451253]
[1749755964530,32.33753723,157.79,157.78,3.98451253]
[1749755964912,61.27626226,157.79,157.78,3.98451253]
[1749755965729,32.33753723,157.79,157.78,3.98451253]